Cogmind - Beta 13 @@@ ROGUE MODE // 2024.05.27 @ 13:26:51 Player: JTMusky Result: Destroyed by S-27 Virus with Autogun Performance ------------- Evolutions (3) 1500 Regions Visited (6) 1200 Robots Destroyed (0) 0 Value Destroyed (0) 0 Prototype IDs (2) 40 Alien Tech Used (0) 0 Bonus (834) 834 TOTAL SCORE: 3574 Bonus ------- Pacifist 834 Cogmind --------- Core Integrity 0/700 Matter 196/300 Energy 99/100 System Corruption 15% Temperature Cool (0) Movement Core (50) Location -7/Factory Parts ------- > --- POWER (1) -------- (None) > --- PROPULSION (2) --- (None) > --- UTILITY (8) ------ Advanced Terrain Scan Processor Improved Melee Analysis Suite > --- WEAPON (2) ------- (None) > --- INVENTORY (5) ---- Light Treads Light Treads High-capacity Matter Pod (0) Seismic Detector Small Laser Peak State ------------ > --- POWER ------------ (None) > --- PROPULSION ------- (None) > --- UTILITY ---------- Advanced Terrain Scan Processor Seismic Detector Improved Melee Analysis Suite > --- WEAPON ----------- Remote Datajack > --- INVENTORY -------- Light Treads Light Treads High-capacity Matter Pod Seismic Detector Small Laser [Rating: 13] Favorites ----------- Power None Propulsion None Utility Targeting Computer Device ECM Suite Processor Targeting Computer Weapon Improved Datajack Special Weapon Remote Datajack Special Melee Weapon Improved Datajack Build | -11 -10 -9 -8 -7 -7 -7 ------- Run | Yrd Mat Mat Mat Fac Was Fac Slots Evolved 6 | . . 2 2 2 . . Power . | . . . . . . . Propulsion . | . . . . . . . Utility 6 | . . 2 2 2 . . Weapon . | . . . . . . . Parts Attached 14 | . 2 2 . 5 . 5 Power . | . . . . . . . Engine . | . . . . . . . Core . | . . . . . . . Reactor . | . . . . . . . Propulsion . | . . . . . . . Treads . | . . . . . . . Leg . | . . . . . . . Wheel . | . . . . . . . Hover . | . . . . . . . Flight . | . . . . . . . Utility 10 | . 2 1 . 3 . 4 Device 6 | . 1 . . 3 . 2 Storage . | . . . . . . . Processor 4 | . 1 1 . . . 2 Hackware . | . . . . . . . Protection . | . . . . . . . Artifact . | . . . . . . . Weapon 4 | . . 1 . 2 . 1 Energy Gun . | . . . . . . . Energy Cannon . | . . . . . . . Ballistic Gun . | . . . . . . . Ballistic Cannon . | . . . . . . . Launcher . | . . . . . . . Special Weapon 1 | . . . . . . 1 Impact Weapon . | . . . . . . . Slashing Weapon . | . . . . . . . Piercing Weapon . | . . . . . . . Special Melee Weapon 3 | . . 1 . 2 . . Unidentified Prototypes . | . . . . . . . Parts Lost 8 | . . . 1 4 1 2 Power . | . . . . . . . Propulsion . | . . . . . . . Utility 5 | . . . . 2 1 2 Weapon 3 | . . . 1 2 . . Highest Loss Streak 2 | . . . 1 2 1 2 To Critical Strikes . | . . . . . . . Average Slot Usage (%) 19 | . 18 33 35 18 6 13 Device 6 | . 8 11 9 4 3 2 Processor 10 | . 9 16 18 10 3 11 Special Melee Weapon 2 | . . 6 8 2 . . Naked Turns 199 | . 90 . . . 70 39 Heaviest Build 3 | . 2 3 3 3 3 1 Greatest Support 3 | 3 3 3 3 3 3 3 Greatest Overweight (x) . | . . . . . . . Average Overweight (x) . | . . . . . . . Largest Inventory Capacity 5 | 5 5 5 5 5 5 5 Average Capacity 5 | 5 5 5 5 5 5 5 Most Carried 5 | 5 5 5 5 5 3 5 Average Carried 4 | 2 5 4 5 4 3 4 Final Capacity 5 | 5 5 5 5 5 5 5 Final Carried 5 | 5 5 5 5 3 3 5 Class Distribution -------------------- 100% | Mutant Dominant Class ---------------- Mutant | -10/Materials Mutant | -9/Materials Mutant | -8/Materials Mutant | -7/Factory Mutant | -7/Waste Mutant | -7/Factory Resources | -11 -10 -9 -8 -7 -7 -7 ----------- Run | Yrd Mat Mat Mat Fac Was Fac Matter Collected 217 | 200 . 17 . . . . Remotely . | . . . . . . . Salvage Created . | . . . . . . . Parts . | . . . . . . . Haulers Intercepted . | . . . . . . . Recyclers Shooed . | . . . . . . . Parts Field Recycled . | . . . . . . . Retrieved Matter . | . . . . . . . Parts Self-Destructed . | . . . . . . . Prevented . | . . . . . . . Kills | -11 -10 -9 -8 -7 -7 -7 ------- Run | Yrd Mat Mat Mat Fac Was Fac Combat Hostiles Destroyed . | . . . . . . . Classes Destroyed . | . . . . . . . Best Kill Streak . | . . . . . . . Combat Bots Only . | . . . . . . . Max Kills in Single Turn . | . . . . . . . Gunslinging . | . . . . . . . Exploded . | . . . . . . . Melee . | . . . . . . . Uniques/NPCs Destroyed . | . . . . . . . Combat | -11 -10 -9 -8 -7 -7 -7 -------- Run | Yrd Mat Mat Mat Fac Was Fac Hostile Shots Fired 144 | . 10 20 7 77 4 26 Missed 61 | . 4 10 3 35 1 8 Damage Taken 1111 | . 79 122 34 473 131 272 Core 899 | . 79 104 16 368 131 201 Absorbed by Shields . | . . . . . . . Regen/Repaired (Parts) 8 | . . . . 8 . . Core Remaining (%) 84 | 100 68 74 97 . . . Volleys Fired . | . . . . . . . Largest . | . . . . . . . Hottest . | . . . . . . . Shots Fired . | . . . . . . . Gun . | . . . . . . . Cannon . | . . . . . . . Launcher . | . . . . . . . Special . | . . . . . . . Kinetic . | . . . . . . . Thermal . | . . . . . . . Explosive . | . . . . . . . Electromagnetic . | . . . . . . . Robot Hit Streak . | . . . . . . . Robot Miss Streak . | . . . . . . . Penetration Max . | . . . . . . . Secondary Targets . | . . . . . . . Shots Hit Robots 2 | . . 1 . 1 . . Core Hits 1 | . . 1 . . . . Critical Kills . | . . . . . . . Critical Parts Destroyed . | . . . . . . . Critical Strikes . | . . . . . . . Melee Attacks 2 | . . 1 . 1 . . Impact . | . . . . . . . Slashing . | . . . . . . . Piercing . | . . . . . . . Sneak Attacks . | . . . . . . . Combat Hostiles . | . . . . . . . Follow-up Attacks . | . . . . . . . Damage Inflicted 12 | . . 12 . . . . Guns . | . . . . . . . Cannons . | . . . . . . . Explosions . | . . . . . . . Melee . | . . . . . . . Ramming 12 | . . 12 . . . . Kinetic . | . . . . . . . Thermal . | . . . . . . . Explosive . | . . . . . . . Electromagnetic . | . . . . . . . Impact . | . . . . . . . Slashing . | . . . . . . . Piercing . | . . . . . . . Highest Corruption 15 | . . . . . 15 15 Average Corruption 11 | . . . . . 8 15 Corruption Purged . | . . . . . . . Corruption Blocked . | . . . . . . . Effects 11 | . . . . . 4 7 Message Errors 2 | . . . . . 1 1 Matter Fused 3 | . . . . . 2 1 Energy Discharges 4 | . . . . . 1 3 Data Loss (minor) 1 | . . . . . . 1 Misdirections 1 | . . . . . . 1 Overload Shots . | . . . . . . . Overflow Damage . | . . . . . . . Projectiles . | . . . . . . . Explosions . | . . . . . . . Melee . | . . . . . . . Knockbacks . | . . . . . . . Impact . | . . . . . . . Kinetic . | . . . . . . . Secondary . | . . . . . . . Self-Inflicted Damage 6 | . . 6 . . . . Shots . | . . . . . . . Rammed 2 | . . 2 . . . . Targets Rammed 2 | . . 2 . . . . Kicked . | . . . . . . . Crushed . | . . . . . . . Highest Temperature . | . . . . . . . Average Temperature . | . . . . . . . Received Heat Transfer 75 | . 45 6 . 24 . . Siege Activations . | . . . . . . . Robots Corrupted . | . . . . . . . Combat Hostiles . | . . . . . . . Parts Fried . | . . . . . . . Impact Corruptions . | . . . . . . . Robots Melted . | . . . . . . . Combat Hostiles . | . . . . . . . Parts Melted . | . . . . . . . Heat Transferred . | . . . . . . . Parts Sabotaged . | . . . . . . . Parts Stolen . | . . . . . . . Parts Stripped . | . . . . . . . Power Chain Reactions . | . . . . . . . Alert | -11 -10 -9 -8 -7 -7 -7 ------- Run | Yrd Mat Mat Mat Fac Was Fac Peak Influence 69 | . 65 42 69 46 31 . Initial 27 | . . 27 17 26 16 . Average 25 | . 31 34 43 29 9 . Maximum Alert Level . | . . . . . . . Low Security (%) 100 | 100 100 100 100 100 100 100 Level 1 . | . . . . . . . Level 2 . | . . . . . . . Level 3 . | . . . . . . . Level 4 . | . . . . . . . Level 5 . | . . . . . . . High Security . | . . . . . . . Max Security . | . . . . . . . Squads Dispatched 1 | . . 1 . . . . Investigation . | . . . . . . . Extermination . | . . . . . . . Reinforcement 1 | . . 1 . . . . Assault . | . . . . . . . Garrison . | . . . . . . . Intercept . | . . . . . . . Searches Triggered . | . . . . . . . Construction Impeded . | . . . . . . . Haulers Reinforced . | . . . . . . . Active Scanning Responses . | . . . . . . . Cargo Convoy Interrupts . | . . . . . . . Stealth | -11 -10 -9 -8 -7 -7 -7 --------- Run | Yrd Mat Mat Mat Fac Was Fac Distress Signals 1 | . . 1 . . . . Communications Jammed . | . . . . . . . Distress Signals . | . . . . . . . Times Spotted 40 | . 7 10 5 9 6 3 Peak Tracking Total 6 | . 4 5 4 5 6 3 Tactical Retreats 8 | . 2 2 . 4 . . Traps | -11 -10 -9 -8 -7 -7 -7 ------- Run | Yrd Mat Mat Mat Fac Was Fac Traps Triggered 1 | . . . . 1 . . Indirectly . | . . . . . . . Trap Hack Attempts . | . . . . . . . Triggered . | . . . . . . . Disarmed . | . . . . . . . Reprogrammed . | . . . . . . . Reused . | . . . . . . . Traps Extracted . | . . . . . . . Installed . | . . . . . . . Triggered . | . . . . . . . Machines | -11 -10 -9 -8 -7 -7 -7 ---------- Run | Yrd Mat Mat Mat Fac Was Fac Machines Disabled . | . . . . . . . Max in Single Turn . | . . . . . . . Machines Repaired . | . . . . . . . Machines Dismantled . | . . . . . . . Machines Sabotaged . | . . . . . . . Overloaded Fab Kills . | . . . . . . . Hacking | -11 -10 -9 -8 -7 -7 -7 --------- Run | Yrd Mat Mat Mat Fac Was Fac Machines Accessed 7 | . 2 1 1 2 . 1 Terminals 5 | . 2 1 1 . . 1 Fabricators 1 | . . . . 1 . . Repair Stations 1 | . . . . 1 . . Recycling Units . | . . . . . . . Scanalyzers . | . . . . . . . Garrison Access . | . . . . . . . Total Hacks 10 | . 2 2 2 3 . 1 Successful 5 | . 1 1 1 2 . . Failed 5 | . 1 1 1 1 . 1 Catastrophic 2 | . 1 . . 1 . . Database Lockouts . | . . . . . . . Manual . | . . . . . . . Terminals 7 | . 2 2 2 . . 1 Fabricators 1 | . . . . 1 . . Repair Stations 2 | . . . . 2 . . Recycling Units . | . . . . . . . Scanalyzers . | . . . . . . . Garrison Access . | . . . . . . . Terminal Hacks 3 | . 1 1 1 . . . Prototype ID Bank 1 | . 1 . . . . . Branch Access Points 1 | . . . 1 . . . Emergency Access Points 1 | . . 1 . . . . Fabricator Hacks . | . . . . . . . Repair Station Hacks 2 | . . . . 2 . . Scan Component 1 | . . . . 1 . . Repair 1 | . . . . 1 . . Recycling Unit Hacks . | . . . . . . . Scanalyzer . | . . . . . . . Garrison Access Hacks . | . . . . . . . Unauthorized Hacks . | . . . . . . . Terminals . | . . . . . . . Fabricators . | . . . . . . . Repair Stations . | . . . . . . . Recycling Units . | . . . . . . . Scanalyzers . | . . . . . . . Garrison Access . | . . . . . . . Data Cores Recovered . | . . . . . . . Used . | . . . . . . . Hacking Detections 3 | . 1 1 . . . 1 Full Trace Events . | . . . . . . . Feedback Events . | . . . . . . . Feedback Blocked . | . . . . . . . Robot Schematics Acquired . | . . . . . . . Robots Built . | . . . . . . . Authchips . | . . . . . . . Time . | . . . . . . . Total Robot Build Rating . | . . . . . . . Part Schematics Acquired . | . . . . . . . Parts Built . | . . . . . . . Authchips . | . . . . . . . Time . | . . . . . . . Total Part Build Rating . | . . . . . . . Parts Repaired 1 | . . . . 1 . . Time 26 | . . . . 26 . . Parts Recycled . | . . . . . . . Recycled Matter . | . . . . . . . Retrieved Matter . | . . . . . . . Retrieved Components . | . . . . . . . Parts Scanalyzed . | . . . . . . . Part Schematics Acquired . | . . . . . . . Parts Damaged . | . . . . . . . Bothacking | -11 -10 -9 -8 -7 -7 -7 ------------ Run | Yrd Mat Mat Mat Fac Was Fac Used RIF Installer . | . . . . . . . Robots Hacked 2 | . . 1 . 1 . . Non-combat . | . . . . . . . Combat 2 | . . 1 . 1 . . Robot Hacks Applied 2 | . . 1 . 1 . . parse_system 2 | . . 1 . 1 . . Relay Couplers Released . | . . . . . . . Fabnet Peak Effective % . | . . . . . . . Robots Rewired . | . . . . . . . Allies Hacked . | . . . . . . . Hacks Repelled . | . . . . . . . Allies | -11 -10 -9 -8 -7 -7 -7 -------- Run | Yrd Mat Mat Mat Fac Was Fac Total Allies 1 | . . . . . 1 . Largest Group 1 | . . . . . 1 . Highest-Rated Group 31 | . . . . . 31 . Highest-Rated Ally 31 | . . . . . 31 . Total Orders . | . . . . . . . Ally Attacks 4 | . . . . . 4 . Total Damage 86 | . . . . . 86 . Kills . | . . . . . . . Allies Corrupted . | . . . . . . . Allies Melted . | . . . . . . . Intel | -11 -10 -9 -8 -7 -7 -7 ------- Run | Yrd Mat Mat Mat Fac Was Fac Robot Analysis Total . | . . . . . . . Derelict Logs Recovered . | . . . . . . . Drone Launches . | . . . . . . . Drone Recoveries . | . . . . . . . Exploration | -11 -10 -9 -8 -7 -7 -7 ------------- Run | Yrd Mat Mat Mat Fac Was Fac Turns Passed 1190 | 28 307 129 119 334 130 143 Spaces Moved 1877 | 47 480 227 144 476 248 255 Core 1877 | 47 480 227 144 476 248 255 Treads . | . . . . . . . Legs . | . . . . . . . Wheels . | . . . . . . . Hover . | . . . . . . . Flight . | . . . . . . . Fastest Speed 50 | 50 50 50 50 50 50 50 Average Speed 50 | 50 50 50 50 50 50 50 Slowest Speed 50 | 50 50 50 50 50 50 50 Overloaded Moves . | . . . . . . . Propulsion Burnouts . | . . . . . . . Robots Hopped . | . . . . . . . Cave-ins Triggered . | . . . . . . . Exploration Rate (%) 32 | 3 76 24 21 15 83 6 Regions Visited 6 Branch Regions . Pre-discovered Areas . | . . . . . . . Known Exits Taken . | . . . . . . . Unknown Exits Taken 4 | 1 1 1 1 . . . Scrap Searched . | . . . . . . . Spaces Dug . | . . . . . . . Terrain Destroyed . | . . . . . . . Melee . | . . . . . . . Projectile . | . . . . . . . AOE . | . . . . . . . Terrain Rammed . | . . . . . . . Walls Destroyed . | . . . . . . . Machines Disabled . | . . . . . . . Actions | -11 -10 -9 -8 -7 -7 -7 --------- Run | Yrd Mat Mat Mat Fac Was Fac Total 2119 | 51 545 241 190 571 253 268 Wait 216 | . 64 6 47 88 6 5 Move 1872 | 46 479 226 143 476 247 255 Hop . | . . . . . . . Pick Up 9 | 5 . 2 . . . 2 Fast Attach 11 | . 2 2 . 2 . 5 Attach 3 | . . . . 3 . . Detach 1 | . . . . 1 . . Swap . | . . . . . . . Drop 3 | . . 2 . . . 1 Fire . | . . . . . . . Melee 2 | . . 1 . 1 . . Ram 2 | . . 2 . . . . Kick . | . . . . . . . Crush . | . . . . . . . Escape Stasis . | . . . . . . . Rewire . | . . . . . . . Trap . | . . . . . . . Miscellaneous . | . . . . . . . Route ------- -11/Scrapyard -10/Materials (discovered 3 exits: *Mat x2 / [*Min]) -9/Materials -8/Materials -7/Factory -7/Waste -7/Factory History --------- Turn | Location | Event 22 | -11/Scrapyard | Discovered new exit (range 14) 29 | -11/Scrapyard | Entered Materials 153 | -10/Materials | Discovered new exit (range 15) 209 | -10/Materials | Discovered new exit (range 6) 289 | -10/Materials | Discovered new exit (range 5) 300 | -10/Materials | Build established: Mutant 336 | -10/Materials | Entered another Materials area 336 | -9/Materials | Evolved 2 slots: Utility x2 454 | -9/Materials | Discovered new exit (range 10) 465 | -9/Materials | Entered another Materials area 465 | -8/Materials | Evolved 2 slots: Utility x2 581 | -8/Materials | Discovered new exit (range 8) 584 | -8/Materials | Entered Factory 584 | -7/Factory | Evolved 2 slots: Utility x2 651 | -7/Factory | Repaired ECM Suite 752 | -7/Factory | Core integrity fell below 50% 913 | -7/Factory | Discovered new exit (range 8) 918 | -7/Factory | Sucked down chute 918 | -7/Factory | Entered Waste 919 | -7/Waste | Met a frightened Derelict 933 | -7/Waste | EMP discharged 944 | -7/Waste | Spotted C-40 Crusher 944 | -7/Waste | Spotted C-40 Crusher 952 | -7/Waste | Spotted C-40 Crusher 968 | -7/Waste | Spotted C-40 Crusher 974 | -7/Waste | Spotted C-40 Crusher 978 | -7/Waste | Crushed by Compactor (1 part destroyed, 1 dropped) 991 | -7/Waste | Spotted C-40 Crusher 1033 | -7/Waste | EMP discharged 1033 | -7/Waste | System corruption reached 10% 1043 | -7/Waste | Discovered new exit (range 11) 1048 | -7/Waste | Entered Factory 1171 | -7/Factory | Core integrity fell below 20% 1191 | -7/Factory | Destroyed by S-27 Virus with Autogun Last Messages --------------- 01050_ Connecting with DSF Access... 01050_ Current location identified: Factory 01051_ System corrupted: Component data lost. 01069_ System corrupted: Matter fused (-10). 01086_ System corrupted: Energy discharge (-38). 01087_ Acquired Adv. Terrain Scan Processor. 01089_ Acquired Imp. Melee Analysis Suite. 01102_ System corrupted: Energy discharge (-25). 01113_ Acquired Seismic Detector. 01117_ Acquired Hcp. Matter Pod. 01131_ NGIM&A5ABGE0G9CAPOPI 01135_ Acquired Remote Datajack. 01136_ Dropped Remote Datajack. 01155_ System corrupted: Energy discharge (-20). 01163_ ALERT: All DSF locations entering lockdown mode. 01167_ Seismic Detector destroyed. 01179_ Acquired Particle Charger. 01179_ Particle Charger destroyed. 01190_ U-05 Engineer builds a Door. Map ----- +----------------------------------------------------+ | ?????????????????????????????????????????????????? | | ?????????????????????????????????????????????????? | | ?????????????????????????????????????????????????? | | ?????????????????????????????????????????????????? | | ?????????????????????????????????????????????????? | | ?????????????????????????????????????????????????? | | ?????????????????????????????????????????????????? | | ?????????????????????????????????????????????????? | | ?????????????????????????????##################### | | ?????????????????????????????# # | | ?????????????????????????????#| = # | | ?????????????????????????????# # | | ?????????????????????????????# "" "" # | | ?????????????????????????????# "" "" # | | ?????????????????????????????# """ """ # | | ?????????????????????????????# """ """ # [ | | ????????????############?????# """ """ # [ | | ????????????#* #?????# # ! | | ????????????#!! #?????# # | | ????????????# ! """ #?????# # | | ????????????# """ #?????# # | | ????????????# """ ##################+######+# | | ????????????# s + | | ????????????# """ """ # | | ????????????# """ """ s/ | | ????????????# """ """ #u@ | | ????????????# # | | ????????????# """ """ !# #####+############### | | ????????????# """ """ # # #??????? | | ????????????# """ """ # # #??????? | | ????????????# # # #??????? | | ????????????# # + """ """" #??????? | | ????????????############ # """ """" #??????? | | ???????????????????????# # """ """" #??????? | | ???????????????????????# # """" #??????? | | ???????????????????????# # """" ????????? | | ???????????????????????# # """" ????????? | | ???????????????????????# # """"?????????? | | ???????????????????????# # ????????? | | ???????????????????????# # ???????? | | ???????????????????????# ?##############??????? | | ???????????????????????# ????????????????????????? | | ???????????????????????#?????????????????????????? | | ?????????????????????????????????????????????????? | | ?????????????????????????????????????????????????? | | ?????????????????????????????????????????????????? | | ?????????????????????????????????????????????????? | | ?????????????????????????????????????????????????? | | ?????????????????????????????????????????????????? | | ?????????????????????????????????????????????????? | +----------------------------------------------------+ Best States ------------- Heat Dissipation 34 Energy Generation 5 Energy Capacity 100 Matter Stores 300 Matter Capacity 300 Sight Range 18 Terrain Scan Density 210 ECM Strength 2 Evasion (%) 50 Targeting Accuracy 5 Item Schematics ----------------- None Robot Schematics ------------------ None Fabricated ------------ Nothing Alien Tech Used ----------------- None Achievements -------------- None Challenges ------------ None Game ------ Seed ElectronStormWings Manual? 0 Play Time 00:30:54 Cumulative 26.5 hours Start 2024.05.27 @ 12:57:50 End 2024.05.27 @ 13:26:51 Sessions 1 Manual Loads 0 Difficulty Rogue Special Mode None Game No. 35 Rogue 35 Adventurer 0 Explorer 0 Win Type - Total 0 Types 0/0/0/0/0/0/0/0/0 Lore% 18 Gallery% 15 Achievement% 16 Wizard Run 0 Options --------- Layout 2 ASCII 1 Keyboard 1 Movement Vi Keybinds 0 Fullscreen 2 Font 40/SmallcapsGlow Map View 50x44 Zoom Use 0% Tactical HUD 1 Map Filters NONE Filters NONE Steam 0 RUN: 18fbaf28-040b-47f9-8a21-138873515811